Workbook

Sheet 目录
A1: 目录
A3: 1 | B3: 部门预算收支总表
A4: 2 | B4: 部门预算收入总表
A5: 3 | B5: 部门预算支出总表
A6: 4 | B6: 部门预算财政拨款收支总表
A7: 5 | B7: 部门预算一般公共预算财政拨款支出表
A8: 6 | B8: 部门预算一般公共预算财政拨款基本支出表
A9: 7 | B9: 部门预算政府性基金预算财政拨款支出表
A10: 8 | B10: 部门预算国有资本经营预算财政拨款支出表
A11: 9 | B11: 部门预算财政拨款“三公”经费支出表

Sheet 部门预算收支总表
A1: 部门预算收支总表
A2: 部门编码及名称：[109]街道办事处 | D2: 预算年度：2021 | E2: 金额单位：万元
A3: 序号 | B3: 收入 | D3: 支出
B4: 项 目 | C4: 预算数 | D4: 项 目 | E4: 预算数
A5: 栏次 | B5: 1 | C5: 2 | D5: 3 | E5: 4
A6: =ROW() -> 6 | B6: 一、财政拨款收入 | C6: 7005.49 | D6: 一、一般公共服务支出 | E6: 858.87
A7: 7 | B7: 二、上级拨款收入 | C7: 0.00 | D7: 二、外交支出 | E7: 0.00
A8: 8 | B8: 三、事业收入 | C8: 0.00 | D8: 三、国防支出 | E8: 0.00
A9: 9 | B9: 其中：财政专户收入 | C9: 0.00 | D9: 四、公共安全支出 | E9: 0.00
A10: 10 | B10: 四、经营收入 | C10: 0.00 | D10: 五、教育支出 | E10: 0.00
A11: 11 | B11: 五、附属单位上缴收入 | C11: 0.00 | D11: 六、科学技术支出 | E11: 0.00
A12: 12 | B12: 六、其他收入 | C12: 0.00 | D12: 七、文化旅游体育与传媒支出 | E12: 0.00
A13: 13 | D13: 八、社会保障和就业支出 | E13: 3085.14
A14: 14 | D14: 九、社会保险基金支出 | E14: 0.00
A15: 15 | D15: 十、卫生健康支出 | E15: 42.15
A16: 16 | D16: 十一、节能环保支出 | E16: 0.00
A17: 17 | D17: 十二、城乡社区支出 | E17: 2591.30
A18: 18 | D18: 十三、农林水支出 | E18: 394.30
A19: 19 | D19: 十四、交通运输支出 | E19: 0.00
A20: 20 | D20: 十五、资源勘探工业信息等支出 | E20: 0.00
A21: 21 | D21: 十六、商业服务业等支出 | E21: 0.00
A22: 22 | D22: 十七、金融支出 | E22: 0.00
A23: 23 | D23: 十八、援助其他地区支出 | E23: 0.00
A24: 24 | D24: 十九、自然资源海洋气象等支出 | E24: 0.00
A25: 25 | D25: 二十、住房保障支出 | E25: 33.73
A26: 26 | D26: 二十一、粮油物资储备支出 | E26: 0.00
A27: 27 | D27: 二十二、国有资本经营预算支出 | E27: 0.00
A28: 28 | D28: 二十三、灾害防治及应急管理支出 | E28: 0.00
A29: 29 | D29: 二十四、预备费 | E29: 0.00
A30: 30 | D30: 二十五、其他支出 | E30: 0.00
A31: 31 | D31: 二十六、转移性支出 | E31: 0.00
A32: 32 | D32: 二十七、债务还本支出 | E32: 0.00
A33: 33 | D33: 二十八、债务付息支出 | E33: 0.00
A34: 34 | D34: 二十九、债务发行费用支出 | E34: 0.00
A35: 35 | B35: 本年收入合计 | C35: =SUM(C6:C34) -> 7005.49 | D35: 本年支出合计 | E35: =SUM(E6:E34) -> 7005.49
A36: 36 | B36: 用事业基金弥补收支差额 | C36: 0.00 | D36: 结余分配 | E36: 0.00
A37: 37 | B37: 年初结转和结余 | C37: 0.00 | D37: 年末结转和结余 | E37: 0.00
A38: 38 | B38: 合计 | C38: =SUM(C35:C37) -> 7005.49 | D38: 合计 | E38: =SUM(E35:E37) -> 7005.49

Sheet 部门预算收入总表
A1: 部门预算收入总表
A2: 部门编码及名称：[109]街道办事处 | H2: 预算年度：2021 | J2: 金额单位：万元
A3: 序号 | B3: 科目 | D3: 本年收入合计 | E3: 财政拨款收入 | F3: 上级补助收入 | G3: 事业收入 | I3: 经营收入 | J3: 附属单位上缴收入 | K3: 其他收入
B4: 功能分类科目编码 | C4: 科目名称 | G4: 小计 | H4: 其中：财政专户收入
A5: 栏次 | B5: 1 | C5: 2 | D5: 3 | E5: 4 | F5: 5 | G5: 6 | H5: 7 | I5: 8 | J5: 9 | K5: 10
A6: =ROW() -> 6 | C6: 合计 | D6: =SUM(E6:F6) -> 7005.49 | E6: =E7+E14+E22+E26+E35+E38 -> 7005.49 | F6: 0.00 | G6: 0.00 | H6: 0.00 | I6: 0.00 | J6: 0.00 | K6: 0.00
A7: 7 | B7: 201 | C7: 一般公共服务支出 | D7: 858.87 | E7: =E8+E12 -> 858.87 | F7: 0.00 | G7: 0.00 | H7: 0.00 | I7: 0.00 | J7: 0.00 | K7: 0.00
A8: 8 | B8: 20103 | C8: 政府办公厅（室）及相关机构事务 | D8: 688.87 | E8: =SUM(E9:E11) -> 688.87 | F8: 0.00 | G8: 0.00 | H8: 0.00 | I8: 0.00 | J8: 0.00 | K8: 0.00
A9: 9 | B9: 2010301 | C9: 行政运行 | D9: 655.87 | E9: =512.67+143.2 -> 655.87 | F9: 0.00 | G9: 0.00 | H9: 0.00 | I9: 0.00 | J9: 0.00 | K9: 0.00
A10: 10 | B10: 2010302 | C10: 一般行政管理事务 | D10: 3.00 | E10: 3.00 | F10: 0.00 | G10: 0.00 | H10: 0.00 | I10: 0.00 | J10: 0.00 | K10: 0.00
A11: 11 | B11: 2010308 | C11: 信访事务 | D11: 30.00 | E11: 30.00 | F11: 0.00 | G11: 0.00 | H11: 0.00 | I11: 0.00 | J11: 0.00 | K11: 0.00
A12: =ROW() -> 12 | B12: 20132 | C12: 组织事务 | D12: =SUM(E12:F12) -> 170.00 | E12: =SUM(E13) -> 170.00 | F12: 0.00 | G12: 0.00 | H12: 0.00 | I12: 0.00 | J12: 0.00 | K12: 0.00
A13: 13 | B13: 2013299 | C13: 其他组织事务支出 | D13: 170.00 | E13: 170.00 | F13: 0.00 | G13: 0.00 | H13: 0.00 | I13: 0.00 | J13: 0.00 | K13: 0.00
A14: 14 | B14: 208 | C14: 社会保障和就业支出 | D14: 3085.14 | E14: =E15+E17+E20 -> 3085.14 | F14: 0.00 | G14: 0.00 | H14: 0.00 | I14: 0.00 | J14: 0.00 | K14: 0.00
A15: 15 | B15: 20802 | C15: 民政管理事务 | D15: 2975.70 | E15: =SUM(E16) -> 2975.70 | F15: 0.00 | G15: 0.00 | H15: 0.00 | I15: 0.00 | J15: 0.00 | K15: 0.00
A16: 16 | B16: 2080208 | C16: 基层政权建设和社区治理 | D16: 2975.70 | E16: =1930+43.7+1002 -> 2975.70 | F16: 0.00 | G16: 0.00 | H16: 0.00 | I16: 0.00 | J16: 0.00 | K16: 0.00
A17: 17 | B17: 20805 | C17: 行政事业单位养老支出 | D17: 67.44 | E17: =SUM(E18:E19) -> 67.44 | F17: 0.00 | G17: 0.00 | H17: 0.00 | I17: 0.00 | J17: 0.00 | K17: 0.00
A18: 18 | B18: 2080505 | C18: 机关事业单位基本养老保险缴费支出★ | D18: 44.96 | E18: =7.01+37.95 -> 44.96 | F18: 0.00 | G18: 0.00 | H18: 0.00 | I18: 0.00 | J18: 0.00 | K18: 0.00
A19: 19 | B19: 2080506 | C19: 机关事业单位职业年金缴费支出★ | D19: 22.48 | E19: =22.48 -> 22.48 | F19: 0.00 | G19: 0.00 | H19: 0.00 | I19: 0.00 | J19: 0.00 | K19: 0.00
A20: 20 | B20: 20810 | C20: 社会福利 | D20: 42.00 | E20: =SUM(E21) -> 42.00 | F20: 0.00 | G20: 0.00 | H20: 0.00 | I20: 0.00 | J20: 0.00 | K20: 0.00
A21: =ROW() -> 21 | B21: 2081099 | C21: 其他社会福利支出 | D21: 42.00 | E21: 42.00 | F21: 0.00 | G21: 0.00 | H21: 0.00 | I21: 0.00 | J21: 0.00 | K21: 0.00
A22: 22 | B22: 210 | C22: 卫生健康支出 | D22: 42.15 | E22: =E23 -> 42.15 | F22: 0.00 | G22: 0.00 | H22: 0.00 | I22: 0.00 | J22: 0.00 | K22: 0.00
A23: 23 | B23: 21011 | C23: 行政事业单位医疗 | D23: 42.15 | E23: =SUM(E24:E25) -> 42.15 | F23: 0.00 | G23: 0.00 | H23: 0.00 | I23: 0.00 | J23: 0.00 | K23: 0.00
A24: 24 | B24: 2101101 | C24: 行政单位医疗 | D24: 6.57 | E24: 6.57 | F24: 0.00 | G24: 0.00 | H24: 0.00 | I24: 0.00 | J24: 0.00 | K24: 0.00
A25: 25 | B25: 2101102 | C25: 事业单位医疗 | D25: 35.58 | E25: 35.58 | F25: 0.00 | G25: 0.00 | H25: 0.00 | I25: 0.00 | J25: 0.00 | K25: 0.00
A26: 26 | B26: 212 | C26: 城乡社区支出 | D26: 2591.30 | E26: =E27+E29+E31 -> 2591.30 | F26: 0.00 | G26: 0.00 | H26: 0.00 | I26: 0.00 | J26: 0.00 | K26: 0.00
A27: 27 | B27: 21203 | C27: 城乡社区公共设施 | D27: 5.20 | E27: 5.20 | F27: 0.00 | G27: 0.00 | H27: 0.00 | I27: 0.00 | J27: 0.00 | K27: 0.00
A28: 28 | B28: 2120399 | C28: 其他城乡社区公共设施支出 | D28: 5.20 | E28: 5.20 | F28: 0.00 | G28: 0.00 | H28: 0.00 | I28: 0.00 | J28: 0.00 | K28: 0.00
A29: =ROW() -> 29 | B29: 21205 | C29: 城乡社区环境卫生 | D29: 281.00 | E29: =SUM(E30) -> 281.00 | F29: 0.00 | G29: 0.00 | H29: 0.00 | I29: 0.00 | J29: 0.00 | K29: 0.00
A30: 30 | B30: 2120501 | C30: 城乡社区环境卫生 | D30: 281.00 | E30: 281.00 | F30: 0.00 | G30: 0.00 | H30: 0.00 | I30: 0.00 | J30: 0.00 | K30: 0.00
A31: 31 | B31: 21208 | C31: 国有土地使用权出让收入安排的支出 | D31: 2305.10 | E31: =SUM(E32:E34) -> 2305.10 | F31: 0.00 | G31: 0.00 | H31: 0.00 | I31: 0.00 | J31: 0.00 | K31: 0.00
A32: 32 | B32: 2120801 | C32: 征地和拆迁补偿支出 | D32: 50.00 | E32: =50 -> 50.00 | F32: 0.00 | G32: 0.00 | H32: 0.00 | I32: 0.00 | J32: 0.00 | K32: 0.00
A33: 33 | B33: 2120805 | C33: 补助被征地农民支出 | D33: 2045.10 | E33: 2045.10 | F33: 0.00 | G33: 0.00 | H33: 0.00 | I33: 0.00 | J33: 0.00 | K33: 0.00
A34: 34 | B34: 2120899 | C34: 其他国有土地使用权出让收入安排的支出 | D34: 210.00 | E34: 210.00 | F34: 0.00 | G34: 0.00 | H34: 0.00 | I34: 0.00 | J34: 0.00 | K34: 0.00
A35: 35 | B35: 213 | C35: 农林水支出 | D35: 394.30 | E35: =E36 -> 394.30 | F35: 0.00 | G35: 0.00 | H35: 0.00 | I35: 0.00 | J35: 0.00 | K35: 0.00
A36: 36 | B36: 21307 | C36: 农村综合改革 | D36: 394.30 | E36: =SUM(E37) -> 394.30 | F36: 0.00 | G36: 0.00 | H36: 0.00 | I36: 0.00 | J36: 0.00 | K36: 0.00
A37: 37 | B37: 2130705 | C37: 对村民委员会和村党支部的补助 | D37: 394.30 | E37: =106+71+76+43.3+20+60+18 -> 394.30 | F37: 0.00 | G37: 0.00 | H37: 0.00 | I37: 0.00 | J37: 0.00 | K37: 0.00
A38: 38 | B38: 221 | C38: 住房保障支出 | D38: 33.73 | E38: =E39 -> 33.73 | F38: 0.00 | G38: 0.00 | H38: 0.00 | I38: 0.00 | J38: 0.00 | K38: 0.00
A39: 39 | B39: 22102 | C39: 住房改革支出 | D39: 33.73 | E39: =SUM(E40) -> 33.73 | F39: 0.00 | G39: 0.00 | H39: 0.00 | I39: 0.00 | J39: 0.00 | K39: 0.00
A40: 40 | B40: 2210201 | C40: 住房公积金 | D40: 33.73 | E40: 33.73 | F40: 0.00 | G40: 0.00 | H40: 0.00 | I40: 0.00 | J40: 0.00 | K40: 0.00

Sheet 部门预算支出总表
A1: 部门预算支出总表
A2: 部门编码及名称：[109]街道办事处 | F2: 预算年度：2021 | H2: 金额单位：万元
A3: 序号 | B3: 科目 | D3: 本年支出合计 | E3: 基本支出 | F3: 项目支出 | G3: 上缴上级支出 | H3: 经营支出 | I3: 对附属单位补助支出
B4: 功能分类科目编码 | C4: 科目名称
A5: 栏次 | B5: 1 | C5: 2 | D5: 3 | E5: 4 | F5: 5 | G5: 6 | H5: 7 | I5: 8
A6: =ROW() -> 6 | C6: 合计 | D6: =D7+D14+D22+D26+D35+D38 -> 7005.49 | E6: =E7+E14+E22+E26+E35+E38 -> 1303.07 | F6: =F7+F14+F22+F26+F35+F38 -> 5098.30 | G6: 0.00 | H6: 0.00 | I6: 0.00
A7: =ROW() -> 7 | B7: 201 | C7: 一般公共服务支出 | D7: =SUM(E7:I7) -> 858.87 | E7: =E8+E12 -> 655.87 | F7: =F8+F12 -> 203.00 | G7: 0.00 | H7: 0.00 | I7: 0.00
A8: =ROW() -> 8 | B8: 20103 | C8: 政府办公厅（室）及相关机构事务 | D8: =SUM(E8:I8) -> 688.87 | E8: 655.87 | F8: 33.00 | G8: 0.00 | H8: 0.00 | I8: 0.00
A9: =ROW() -> 9 | B9: 2010301 | C9: 行政运行 | D9: =SUM(E9:I9) -> 655.87 | E9: 655.87 | F9: 0.00 | G9: 0.00 | H9: 0.00 | I9: 0.00
A10: =ROW() -> 10 | B10: 2010302 | C10: 一般行政管理事务 | D10: =SUM(E10:I10) -> 3.00 | E10: 0.00 | F10: 3.00 | G10: 0.00 | H10: 0.00 | I10: 0.00
A11: 11 | B11: 2010308 | C11: 信访事务 | D11: =SUM(E11:I11) -> 30.00 | E11: 0.00 | F11: 30.00 | G11: 0.00 | H11: 0.00 | I11: 0.00
A12: 12 | B12: 20132 | C12: 组织事务 | D12: 170.00 | E12: 0.00 | F12: 170.00 | G12: 0.00 | H12: 0.00 | I12: 0.00
A13: 13 | B13: 2013299 | C13: 其他组织事务支出 | D13: 170.00 | E13: 0.00 | F13: 170.00 | G13: 0.00 | H13: 0.00 | I13: 0.00
A14: 14 | B14: 208 | C14: 社会保障和就业支出 | D14: =D15+D17+D20 -> 3085.14 | E14: =E15+E17+E20 -> 465.32 | F14: =F15+F17+F20 -> 2015.70 | G14: 0.00 | H14: 0.00 | I14: 0.00
A15: 15 | B15: 20802 | C15: 民政管理事务 | D15: =SUM(D16) -> 2975.70 | E15: 397.88 | F15: =F16 -> 1973.70 | G15: 0.00 | H15: 0.00 | I15: 0.00
A16: 16 | B16: 2080208 | C16: 基层政权建设和社区治理 | D16: 2975.70 | E16: 1002.00 | F16: =1930+43.7 -> 1973.70 | G16: 0.00 | H16: 0.00 | I16: 0.00
A17: 17 | B17: 20805 | C17: 行政事业单位养老支出 | D17: 67.44 | E17: =E18+E19 -> 67.44 | F17: 0.00 | G17: 0.00 | H17: 0.00 | I17: 0.00
A18: 18 | B18: 2080505 | C18: 机关事业单位基本养老保险缴费支出★ | D18: 44.96 | E18: =7.01+37.95 -> 44.96 | F18: 0.00 | G18: 0.00 | H18: 0.00 | I18: 0.00
A19: 19 | B19: 2080506 | C19: 机关事业单位职业年金缴费支出★ | D19: 22.48 | E19: 22.48 | F19: 0.00 | G19: 0.00 | H19: 0.00 | I19: 0.00
A20: =ROW() -> 20 | B20: 20810 | C20: 社会福利 | D20: 42.00 | E20: 0.00 | F20: =F21 -> 42.00 | G20: 0.00 | H20: 0.00 | I20: 0.00
A21: 21 | B21: 2081099 | C21: 其他社会福利支出 | D21: 42.00 | E21: 0.00 | F21: 42.00 | G21: 0.00 | H21: 0.00 | I21: 0.00
A22: 22 | B22: 210 | C22: 卫生健康支出 | D22: 42.15 | E22: =E23 -> 42.15 | F22: 0.00 | G22: 0.00 | H22: 0.00 | I22: 0.00
A23: 23 | B23: 21011 | C23: 行政事业单位医疗 | D23: 42.15 | E23: =SUM(E24:E25) -> 42.15 | F23: 0.00 | G23: 0.00 | H23: 0.00 | I23: 0.00
A24: 24 | B24: 2101101 | C24: 行政单位医疗 | D24: 6.57 | E24: 6.57 | F24: 0.00 | G24: 0.00 | H24: 0.00 | I24: 0.00
A25: 25 | B25: 2101102 | C25: 事业单位医疗 | D25: 35.58 | E25: 35.58 | F25: 0.00 | G25: 0.00 | H25: 0.00 | I25: 0.00
A26: 26 | B26: 212 | C26: 城乡社区支出 | D26: 2591.30 | E26: =E27+E29+E31 -> 0.00 | F26: =F27+F29+F31 -> 2591.30 | G26: 0.00 | H26: 0.00 | I26: 0.00
A27: 27 | B27: 21203 | C27: 城乡社区公共设施 | D27: 5.20 | E27: 0.00 | F27: 5.20 | G27: 0.00 | H27: 0.00 | I27: 0.00
A28: 28 | B28: 2120399 | C28: 其他城乡社区公共设施支出 | D28: 5.20 | E28: 0.00 | F28: 5.20 | G28: 0.00 | H28: 0.00 | I28: 0.00
A29: =ROW() -> 29 | B29: 21205 | C29: 城乡社区环境卫生 | D29: =SUM(E29:I29) -> 281.00 | E29: =E30 -> 0.00 | F29: =F30 -> 281.00 | G29: =G30 -> 0.00 | H29: =H30 -> 0.00 | I29: =I30 -> 0.00
A30: 30 | B30: 2120501 | C30: 城乡社区环境卫生 | D30: 281.00 | E30: 0.00 | F30: 281.00 | G30: 0.00 | H30: 0.00 | I30: 0.00
A31: 31 | B31: 21208 | C31: 国有土地使用权出让收入安排的支出 | D31: 2305.10 | E31: =E32+E33+E34 -> 0.00 | F31: =F32+F33+F34 -> 2305.10 | G31: 0.00 | H31: 0.00 | I31: 0.00
A32: 32 | B32: 2120801 | C32: 征地和拆迁补偿支出 | D32: 50.00 | E32: 0.00 | F32: 50.00 | G32: 0.00 | H32: 0.00 | I32: 0.00
A33: 33 | B33: 2120805 | C33: 补助被征地农民支出 | D33: 2045.10 | E33: 0.00 | F33: 2045.10 | G33: 0.00 | H33: 0.00 | I33: 0.00
A34: 34 | B34: 2120899 | C34: 其他国有土地使用权出让收入安排的支出 | D34: 210.00 | E34: 0.00 | F34: 210.00 | G34: 0.00 | H34: 0.00 | I34: 0.00
A35: 35 | B35: 213 | C35: 农林水支出 | D35: =SUM(E35:I35) -> 394.30 | E35: =E36 -> 106.00 | F35: =F36 -> 288.30 | G35: 0.00 | H35: 0.00 | I35: 0.00
A36: =ROW() -> 36 | B36: 21307 | C36: 农村综合改革 | D36: 394.30 | E36: =E37 -> 106.00 | F36: =F37 -> 288.30 | G36: 0.00 | H36: 0.00 | I36: 0.00
A37: =ROW() -> 37 | B37: 2130705 | C37: 对村民委员会和村党支部的补助 | D37: 394.30 | E37: 106.00 | F37: =71+76+43.3+20+60+18 -> 288.30 | G37: 0.00 | H37: 0.00 | I37: 0.00
A38: =ROW() -> 38 | B38: 221 | C38: 住房保障支出 | D38: 33.73 | E38: =E39 -> 33.73 | F38: 0.00 | G38: 0.00 | H38: 0.00 | I38: 0.00
A39: =ROW() -> 39 | B39: 22102 | C39: 住房改革支出 | D39: 33.73 | E39: =E40 -> 33.73 | F39: 0.00 | G39: 0.00 | H39: 0.00 | I39: 0.00
A40: =ROW() -> 40 | B40: 2210201 | C40: 住房公积金 | D40: 33.73 | E40: 33.73 | F40: 0.00 | G40: 0.00 | H40: 0.00 | I40: 0.00

Sheet 部门预算财政拨款收支总表
A1: 部门预算财政拨款收支总表
A2: 部门编码及名称：[109]街道办事处 | E2: 预算年度：2021 | G2: 金额单位：万元
A3: 序号 | B3: 收入 | D3: 支出
B4: 项 目 | C4: 金额 | D4: 项 目 | E4: 合计 | F4: 一般公共预算财政拨款 | G4: 政府性基金预算财政拨款 | H4: 国有资本经营预算财政拨款
A5: 栏次 | B5: 1 | C5: 2 | D5: 3 | E5: 4 | F5: 5 | G5: 6 | H5: 7
A6: =ROW() -> 6 | B6: 一、一般公共预算财政拨款 | C6: 4700.39 | D6: 一、一般公共服务支出 | E6: =F6+G6 -> 858.87 | F6: 858.87 | G6: 0.00 | H6: 0.00
A7: 7 | B7: 二、政府性基金预算财政拨款 | C7: 2305.10 | D7: 二、外交支出 | E7: =F7+G7 -> 0.00 | F7: 0.00 | G7: 0.00 | H7: 0.00
A8: 8 | B8: 三、国有资本经营预算财政拨款 | C8: 0.00 | D8: 三、国防支出 | E8: 0.00 | F8: 0.00 | G8: 0.00 | H8: 0.00
A9: 9 | D9: 四、公共安全支出 | E9: 0.00 | F9: 0.00 | G9: 0.00 | H9: 0.00
A10: 10 | D10: 五、教育支出 | E10: 0.00 | F10: 0.00 | G10: 0.00 | H10: 0.00
A11: 11 | D11: 六、科学技术支出 | E11: 0.00 | F11: 0.00 | G11: 0.00 | H11: 0.00
A12: 12 | D12: 七、文化旅游体育与传媒支出 | E12: 0.00 | F12: 0.00 | G12: 0.00 | H12: 0.00
A13: 13 | D13: 八、社会保障和就业支出 | E13: 3085.14 | F13: 3085.14 | G13: 0.00 | H13: 0.00
A14: 14 | D14: 九、社会保险基金支出 | E14: 0.00 | F14: 0.00 | G14: 0.00 | H14: 0.00
A15: 15 | D15: 十、卫生健康支出 | E15: 42.15 | F15: 42.15 | G15: 0.00 | H15: 0.00
A16: 16 | D16: 十一、节能环保支出 | E16: 0.00 | F16: 0.00 | G16: 0.00 | H16: 0.00
A17: 17 | D17: 十二、城乡社区支出 | E17: 2591.30 | F17: 286.20 | G17: 2305.10 | H17: 0.00
A18: 18 | D18: 十三、农林水支出 | E18: =F18+G18 -> 394.30 | F18: 394.30 | G18: 0.00 | H18: 0.00
A19: 19 | D19: 十四、交通运输支出 | E19: 0.00 | F19: 0.00 | G19: 0.00 | H19: 0.00
A20: 20 | D20: 十五、资源勘探工业信息等支出 | E20: 0.00 | F20: 0.00 | G20: 0.00 | H20: 0.00
A21: 21 | D21: 十六、商业服务业等支出 | E21: 0.00 | F21: 0.00 | G21: 0.00 | H21: 0.00
A22: 22 | D22: 十七、金融支出 | E22: 0.00 | F22: 0.00 | G22: 0.00 | H22: 0.00
A23: 23 | D23: 十八、援助其他地区支出 | E23: 0.00 | F23: 0.00 | G23: 0.00 | H23: 0.00
A24: 24 | D24: 十九、自然资源海洋气象等支出 | E24: 0.00 | F24: 0.00 | G24: 0.00 | H24: 0.00
A25: 25 | D25: 二十、住房保障支出 | E25: 33.73 | F25: 33.73 | G25: 0.00 | H25: 0.00
A26: 26 | D26: 二十一、粮油物资储备支出 | E26: 0.00 | F26: 0.00 | G26: 0.00 | H26: 0.00
A27: 27 | D27: 二十二、国有资本经营预算支出 | E27: 0.00 | F27: 0.00 | G27: 0.00 | H27: 0.00
A28: 28 | D28: 二十三、灾害防治及应急管理支出 | E28: 0.00 | F28: 0.00 | G28: 0.00 | H28: 0.00
A29: 29 | D29: 二十四、预备费 | E29: 0.00 | F29: 0.00 | G29: 0.00 | H29: 0.00
A30: 30 | D30: 二十五、其他支出 | E30: 0.00 | F30: 0.00 | G30: 0.00 | H30: 0.00
A31: 31 | D31: 二十六、转移性支出 | E31: 0.00 | F31: 0.00 | G31: 0.00 | H31: 0.00
A32: 32 | D32: 二十七、债务还本支出 | E32: 0.00 | F32: 0.00 | G32: 0.00 | H32: 0.00
A33: 33 | D33: 二十八、债务付息支出 | E33: 0.00 | F33: 0.00 | G33: 0.00 | H33: 0.00
A34: 34 | D34: 二十九、债务发行费用支出 | E34: 0.00 | F34: 0.00 | G34: 0.00 | H34: 0.00
A35: 35 | B35: 本年收入合计 | C35: =C6+C7+C8 -> 7005.49 | D35: 本年支出合计 | E35: 7005.49 | F35: =SUM(F6:F34) -> 4700.39 | G35: =SUM(G6:G34) -> 2305.10 | H35: 0.00
A36: 36 | B36: 年初财政拨款结转和结余 | C36: 0.00 | D36: 年末结转和结余 | E36: =F36+G36 -> 0.00 | F36: 0.00 | G36: 0.00 | H36: 0.00
A37: 37 | B37: 合计 | C37: =SUM(C35:C36) -> 7005.49 | D37: 合计 | E37: =F37+G37 -> 7005.49 | F37: =SUM(F35:F36) -> 4700.39 | G37: =SUM(G35:G36) -> 2305.10 | H37: 0.00

Sheet 部门预算一般公共预算财政拨款支出表
A1: 部门预算一般公共预算财政拨款支出表
A2: 部门编码及名称：[109]街道办事处 | E2: 预算年度：2021 | F2: 金额单位：万元
A3: 序号 | B3: 科目 | D3: 合计 | E3: 基本支出 | F3: 项目支出
B4: 功能分类科目编码 | C4: 科目名称
A5: 栏次 | B5: 1 | C5: 2 | D5: 3 | E5: 4 | F5: 5
A6: =ROW() -> 6 | C6: 合计 | D6: =E6+F6 -> 4700.39 | E6: =E7+E14+E22+E26+E31+E34 -> 1907.19 | F6: =F7+F14+F22+F26+F31+F34 -> 2793.20
A7: =ROW() -> 7 | B7: 201 | C7: 一般公共服务支出 | D7: =E7+F7 -> 858.87 | E7: =E8+E12 -> 655.87 | F7: =F8+F12 -> 203.00
A8: =ROW() -> 8 | B8: 20103 | C8: 政府办公厅（室）及相关机构事务 | D8: 688.87 | E8: =E9+E10+E11 -> 655.87 | F8: =F9+F10+F11 -> 33.00
A9: 9 | B9: 2010301 | C9: 行政运行 | D9: 655.87 | E9: 655.87 | F9: 0.00
A10: 10 | B10: 2010302 | C10: 一般行政管理事务 | D10: 3.00 | E10: 0.00 | F10: 3.00
A11: 11 | B11: 2010308 | C11: 信访事务 | D11: 30.00 | E11: 0.00 | F11: 30.00
A12: 12 | B12: 20132 | C12: 组织事务 | D12: 170.00 | E12: =E13 -> 0.00 | F12: =F13 -> 170.00
A13: 13 | B13: 2013299 | C13: 其他组织事务支出 | D13: 170.00 | E13: 0.00 | F13: 170.00
A14: =ROW() -> 14 | B14: 208 | C14: 社会保障和就业支出 | D14: 3085.14 | E14: =E15+E17+E20 -> 1069.44 | F14: =F15+F17+F20 -> 2015.70
A15: 15 | B15: 20802 | C15: 民政管理事务 | D15: 2975.70 | E15: =E16 -> 1002.00 | F15: =F16 -> 1973.70
A16: 16 | B16: 2080208 | C16: 基层政权建设和社区治理 | D16: 2975.70 | E16: 1002.00 | F16: 1973.70
A17: 17 | B17: 20805 | C17: 行政事业单位养老支出 | D17: 67.44 | E17: =E18+E19 -> 67.44 | F17: =F18+F19 -> 0.00
A18: 18 | B18: 2080505 | C18: 机关事业单位基本养老保险缴费支出★ | D18: 44.96 | E18: 44.96 | F18: 0.00
A19: 19 | B19: 2080506 | C19: 机关事业单位职业年金缴费支出★ | D19: 22.48 | E19: 22.48 | F19: 0.00
A20: 20 | B20: 20810 | C20: 社会福利 | D20: 42.00 | E20: =E21 -> 0.00 | F20: =F21 -> 42.00
A21: 21 | B21: 2081099 | C21: 其他社会福利支出 | D21: 42.00 | E21: 0.00 | F21: 42.00
A22: 22 | B22: 210 | C22: 卫生健康支出 | D22: 42.15 | E22: =E23 -> 42.15 | F22: =F23 -> 0.00
A23: 23 | B23: 21011 | C23: 行政事业单位医疗 | D23: 42.15 | E23: =E24+E25 -> 42.15 | F23: =F24+F25 -> 0.00
A24: 24 | B24: 2101101 | C24: 行政单位医疗 | D24: 6.57 | E24: 6.57 | F24: 0.00
A25: 25 | B25: 2101102 | C25: 事业单位医疗 | D25: 35.58 | E25: 35.58 | F25: 0.00
A26: 26 | B26: 212 | C26: 城乡社区支出 | D26: 286.20 | E26: =E27+E29 -> 0.00 | F26: =F27+F29 -> 286.20
A27: 27 | B27: 21203 | C27: 城乡社区公共设施 | D27: 5.20 | E27: 0.00 | F27: 5.20
A28: 28 | B28: 2120399 | C28: 其他城乡社区公共设施支出 | D28: 5.20 | E28: 0.00 | F28: 5.20
A29: =ROW() -> 29 | B29: 21205 | C29: 城乡社区环境卫生 | D29: =E29+F29 -> 281.00 | E29: =E30 -> 0.00 | F29: =F30 -> 281.00
A30: 30 | B30: 2120501 | C30: 城乡社区环境卫生 | D30: 281.00 | E30: 0.00 | F30: 281.00
A31: 31 | B31: 213 | C31: 农林水支出 | D31: 394.30 | E31: =E32 -> 106.00 | F31: =F32 -> 288.30
A32: 32 | B32: 21307 | C32: 农村综合改革 | D32: 394.30 | E32: =E33 -> 106.00 | F32: =F33 -> 288.30
A33: 33 | B33: 2130705 | C33: 对村民委员会和村党支部的补助 | D33: 394.30 | E33: 106.00 | F33: 288.30
A34: 34 | B34: 221 | C34: 住房保障支出 | D34: 33.73 | E34: =E35 -> 33.73 | F34: 0.00
A35: 35 | B35: 22102 | C35: 住房改革支出 | D35: 33.73 | E35: =E36 -> 33.73 | F35: 0.00
A36: 36 | B36: 2210201 | C36: 住房公积金 | D36: 33.73 | E36: 33.73 | F36: 0.00

Sheet 部门预算一般公共预算财政拨款基本支出表
A1: 部门预算一般公共预算财政拨款基本支出表
A2: 部门编码及名称：[109]街道办事处 | E2: 预算年度：2021 | F2: 金额单位：万元
A3: 序号 | B3: 科目 | D3: 基本支出
B4: 经济分类科目编码 | C4: 科目名称 | D4: 合计 | E4: 人员经费 | F4: 公用经费
A5: 栏次 | B5: 1 | C5: 2 | D5: 3 | E5: 4 | F5: 5
A6: =ROW() -> 6 | C6: 合计 | D6: =E6+F6 -> 1907.19 | E6: =E7+E32+E18 -> 1763.99 | F6: =F7+F32+F18 -> 143.20
A7: 7 | B7: 301 | C7: 工资福利支出 | D7: =E7+F7 -> 655.85 | E7: =SUM(E8:E17) -> 655.85 | F7: =SUM(F8:F17) -> 0.00
A8: 8 | B8: 30101 | C8: 基本工资 | D8: =E8+F8 -> 130.06 | E8: 130.06 | F8: 0.00
A9: 9 | B9: 30102 | C9: 津贴补贴★ | D9: 154.68 | E9: 154.68 | F9: 0.00
A10: 10 | B10: 30103 | C10: 奖金 | D10: 1.87 | E10: 1.87 | F10: 0.00
A11: 11 | B11: 30107 | C11: 绩效工资 | D11: 158.15 | E11: 158.15 | F11: 0.00
A12: 12 | B12: 30108 | C12: 机关事业单位基本养老保险缴费★ | D12: 44.96 | E12: =7.01+37.95 -> 44.96 | F12: 0.00
A13: 13 | B13: 30109 | C13: 职业年金缴费★ | D13: 22.48 | E13: 22.48 | F13: 0.00
A14: 14 | B14: 30110 | C14: 城镇职工基本医疗保险缴费 | D14: 42.15 | E14: =35.58+6.57 -> 42.15 | F14: 0.00
A15: 15 | B15: 30112 | C15: 其他社会保障缴费★ | D15: 4.34 | E15: 4.34 | F15: 0.00
A16: 16 | B16: 30113 | C16: 住房公积金 | D16: 33.73 | E16: 33.73 | F16: 0.00
A17: 17 | B17: 30199 | C17: 其他工资福利支出 | D17: 63.43 | E17: 63.43 | F17: 0.00
A18: 18 | B18: 302 | C18: 商品和服务支出 | D18: 143.20 | E18: =SUM(E19:E31) -> 0.00 | F18: =SUM(F19:F31) -> 143.20
A19: 19 | B19: 30201 | C19: 办公费 | D19: 6.75 | E19: 0.00 | F19: 6.75
A20: 20 | B20: 30205 | C20: 水费 | D20: 6.50 | E20: 0.00 | F20: 6.50
A21: 21 | B21: 30206 | C21: 电费 | D21: 27.00 | E21: 0.00 | F21: 27.00
A22: 22 | B22: 30207 | C22: 邮电费 | D22: 5.10 | E22: 0.00 | F22: 5.10
A23: 23 | B23: 30208 | C23: 取暖费 | D23: 28.80 | E23: 0.00 | F23: 28.80
A24: 24 | B24: 30211 | C24: 差旅费 | D24: 1.50 | E24: 0.00 | F24: 1.50
A25: 25 | B25: 30213 | C25: 维修(护)费 | D25: 0.50 | E25: 0.00 | F25: 0.50
A26: 26 | B26: 30214 | C26: 租赁费 | D26: 45.18 | E26: 0.00 | F26: 45.18
A27: 27 | B27: 30215 | C27: 会议费 | D27: 0.30 | E27: 0.00 | F27: 0.30
A28: 28 | B28: 30217 | C28: 公务接待费 | D28: 2.00 | E28: 0.00 | F28: 2.00
A29: 29 | B29: 30228 | C29: 工会经费 | D29: 5.62 | E29: 0.00 | F29: 5.62
A30: 30 | B30: 30231 | C30: 公务用车运行维护费★ | D30: 13.50 | E30: 0.00 | F30: 13.50
A31: 31 | B31: 30299 | C31: 其他商品和服务支出 | D31: 0.45 | E31: 0.00 | F31: 0.45
A32: 32 | B32: 303 | C32: 对个人和家庭的补助 | D32: 1108.14 | E32: =SUM(E33:E34) -> 1108.14 | F32: =SUM(F33:F34) -> 0.00
A33: 33 | B33: 30309 | C33: 奖励金 | D33: 0.14 | E33: 0.14 | F33: 0.00
A34: 34 | B34: 30399 | C34: 其他对个人和家庭的补助 | D34: 1108.00 | E34: 1108.00 | F34: 0.00

Sheet 部门预算政府基金预算财政拨款支出表
A1: 部门预算政府基金预算财政拨款支出表
A2: 部门编码及名称：[109]街道办事处 | E2: 预算年度：2021 | F2: 金额单位：万元
A3: 序号 | B3: 科目 | D3: 合计 | E3: 基本支出 | F3: 项目支出
B4: 功能分类科目编码 | C4: 科目名称
A5: 栏次 | B5: 1 | C5: 2 | D5: 3 | E5: 4 | F5: 5
A6: =ROW() -> 6 | C6: 合计 | D6: =E6+F6 -> 2305.10 | E6: =E7 -> 0.00 | F6: =F7 -> 2305.10
A7: =ROW() -> 7 | B7: 212 | C7: 城乡社区支出 | D7: 2305.10 | E7: =E8 -> 0.00 | F7: =F8 -> 2305.10
A8: =ROW() -> 8 | B8: 21208 | C8: 国有土地使用权出让收入安排的支出 | D8: 2305.10 | E8: =E9+E10+E11 -> 0.00 | F8: =F9+F10+F11 -> 2305.10
A9: =ROW() -> 9 | B9: 2120801 | C9: 征地和拆迁补偿支出 | D9: 50.00 | E9: 0.00 | F9: 50.00
A10: =ROW() -> 10 | B10: 2120805 | C10: 补助被征地农民支出 | D10: 2045.10 | E10: 0.00 | F10: 2045.10
A11: =ROW() -> 11 | B11: 2120899 | C11: 其他国有土地使用权出让收入安排的支出 | D11: 210.00 | E11: 0.00 | F11: 210.00

Sheet 部门预算国有资本经营预算财政拨款支出表
A1: 部门预算国有资本经营预算财政拨款支出表
A2: 部门编码及名称：[109]街道办事处 | E2: 预算年度：2021 | F2: 金额单位：万元
A3: 序号 | B3: 科目 | D3: 合计 | E3: 基本支出 | F3: 项目支出
B4: 功能分类科目编码 | C4: 科目名称
A5: 栏次 | B5: 1 | C5: 2 | D5: 3 | E5: 4 | F5: 5
A6: =ROW() -> 6 | C6: 合计 | E6: 0.00
B8: 备注：此表无数据

Sheet 部门预算财政拨款“三公”经费支出表
A1: 部门预算财政拨款“三公”经费支出表
A2: 部门编码及名称：[109]街道办事处 | F2: 预算年度：2021 | G2: 金额单位：万元
A3: 序号 | B3: 项 目 | C3: 资金来源
C4: 合计 | D4: 一般公共预算财政拨款 | E4: 政府性基金财政拨款 | F4: 国有资本经营预算财政拨款 | G4: 财政专户核拨资金
A5: 栏次 | B5: 1 | C5: 2 | D5: 3 | E5: 4 | F5: 5 | G5: 6
A6: =ROW() -> 6 | B6: 合计
A7: 7 | B7: “三公”经费小计 | C7: 15.50 | D7: 15.50 | E7: 0.00 | F7: 0.00 | G7: 0.00
A8: 8 | B8: 一、因公出国（境）费 | C8: 0.00 | D8: 0.00 | E8: 0.00 | F8: 0.00 | G8: 0.00
A9: 9 | B9: 其中：教学科研人员因公出国（境）费
A10: 10 | B10: 其他因公出国（境）费
A11: 11 | B11: 二、公务用车购置及运维费 | C11: 13.50 | D11: 13.50 | E11: 0.00 | F11: 0.00 | G11: 0.00
A12: 12 | B12: 其中：公务用车购置费
A13: 13 | B13: 公务用车运行维护费 | C13: 13.50 | D13: 13.50 | E13: 0.00 | F13: 0.00 | G13: 0.00
A14: 14 | B14: 三、公务接待费 | C14: 2.00 | D14: 2.00 | E14: 0.00 | F14: 0.00 | G14: 0.00
